lending/lending_fUSD_20250409
["ID","MTS","AMOUNT","RATE_DAILY","PERIOD"]
[357563709,1744162202040,-8490.92711929,0.00015,2]
[357563710,1744162202084,-8490.92711929,0.00015,2]
[357563717,1744162232720,-1147.49148048,0.00015,2]
[357563718,1744162232732,-5002.19747861,0.00015,2]
[357563719,1744162232741,-171.19,0.00017106,2]
[357563720,1744162232751,-12738.21252139,0.00019,2]
[357563721,1744162232771,-7500.0,0.00019,2]
[357563722,1744162232782,-3777.75,0.00019,2]
[357563723,1744162232793,-306.70803133,0.00019,2]
[357563724,1744162232804,-15015.0,0.00019,2]
[357563725,1744162232820,-756.89133885,0.00019,2]
[357563726,1744162232831,-1682.17841262,0.00019,2]
[357563727,1744162232843,-2938.16773446,0.00019,2]
[357563728,1744162232852,-347.25791186,0.0001902,2]
[357563729,1744162232863,-652.74208814,0.0001902,2]
[357563730,1744162232873,-250.0,0.00019688,2]
[357563731,1744162232882,-263.44608735,0.00019692,2]
[357563732,1744162232892,-449.39835575,0.00019873,2]
[357563733,1744162232901,-419.77046858,0.00019873,2]
[357563734,1744162232912,-888.65670818,0.00019873,2]
[357563735,1744162232923,-925.82050344,0.00019873,2]
[357563736,1744162232954,-162.56971002,0.0001981,2]
[357563737,1744162232966,-2087.43028998,0.00019873,2]
[357563738,1744162232980,-1050.0,0.00019873,2]
[357563763,1744162238510,-30.46356878,0.00019873,2]
[357563764,1744162238520,-832.27524542,0.0001989,2]
[357563765,1744162238529,-651.8745,0.000199,2]
[357563766,1744162238539,-218.65491971,0.000199,2]
[357563767,1744162238548,-2955.15180064,0.000199,2]
[357563768,1744162238679,-9445.57096533,0.000199,2]
[357563769,1744162238691,-7708.73035835,0.000199,2]
[357563770,1744162238707,-1761.97265312,0.000199,2]
[357563771,1744162238718,-624.81737157,0.000199,2]
[357563772,1744162238729,-494.0974536,0.000199,2]
[357563773,1744162238741,-486.85156913,0.000199,2]
[357563774,1744162238752,-252.96898623,0.000199,2]
[357563775,1744162238763,-752.79,0.000199,2]
[357563776,1744162238774,-783.33,0.000199,2]
[357563777,1744162238787,-2999.83345623,0.000199,2]
[357563778,1744162238798,-1301.18066778,0.000199,2]
[357563779,1744162238809,-238651.99999997,0.000199,2]
[357563780,1744162238820,-363.50002513,0.000199,2]
[357563781,1744162238831,-7044.99999985,0.000199,2]
[357563782,1744162238853,-3385.31845374,0.000199,2]
[357563783,1744162238864,-3110.01716113,0.000199,2]
[357563784,1744162238875,-2048.003565,0.000199,2]
[357563785,1744162238886,-4059.62035122,0.000199,2]
[357563786,1744162238897,-1795.08269747,0.000199,2]
[357563787,1744162238908,-426.63000001,0.000199,2]
[357563788,1744162238923,-1052.48092044,0.000199,2]
[357563789,1744162238934,-374.26159457,0.000199,2]
[357563790,1744162238963,-8079.61965227,0.000199,2]
[357563791,1744162238974,-628.0812623,0.000199,2]
[357563792,1744162238985,-277.15101866,0.000199,2]
[357563793,1744162238997,-25223.61360742,0.000199,2]
[357563798,1744162239064,-33431.55314841,0.000199,2]
[357563800,1744162239075,-466.85234758,0.000199,2]
[357563801,1744162239086,-577.31165299,0.000199,2]
[357563806,1744162239977,271.0,0.00043505,120]
[357563809,1744162240510,-376.34111263,0.000199,2]
[357563811,1744162240622,-251.60005259,0.000199,2]
[357563812,1744162240634,-1457.95919403,0.000199,2]
[357563813,1744162240645,-3757.47513947,0.000199,2]
[357563814,1744162240717,-0.00756614,0.000199,2]
[357563815,1744162240764,-37549.99999999,0.000199,2]
[357563816,1744162240776,-387.49857229,0.000199,2]
[357563817,1744162240787,-2758.79360006,0.000199,2]
[357563818,1744162241041,-1396.24787146,0.000199,2]
[357563819,1744162241053,-722.54353891,0.000199,2]
[357563820,1744162241064,-1607.56312509,0.000199,2]
[357563821,1744162241080,-1133.17,0.000199,2]
[357563822,1744162241092,-375.59518607,0.000199,2]
[357563823,1744162241103,-32283.67996175,0.000199,2]
[357563824,1744162241115,-253.08413503,0.000199,2]
[357563825,1744162241127,-533.71400346,0.000199,2]
[357563826,1744162241139,-73117.50000085,0.000199,2]
[357563827,1744162241151,-5265.7605,0.000199,2]
[357563850,1744162243716,-80081.42030004,0.000199,2]
[357563851,1744162243726,-603.47239579,0.000199,2]
[357563852,1744162243736,-6764.89470958,0.0001991,2]
[357563853,1744162243746,-501.74338616,0.00019973,2]
[357563854,1744162243755,-500.0,0.00019973,2]
[357563855,1744162243765,-392.75603891,0.00019982,2]
[357563856,1744162243774,-5706.32508728,0.0002,2]
[357563857,1744162243786,-150282.99699004,0.0002,2]
[357563858,1744162243797,-250.16872601,0.0002,2]
[357563859,1744162243808,-112846.9178497,0.0002,2]
[357563860,1744162243820,-15563.80000135,0.0002,2]
[357563861,1744162243831,-469.49202981,0.0002,2]
[357563870,1744162244470,-91.48697623,0.0002,2]
[357563873,1744162244490,-266.9995,0.0002,2]
[357563879,1744162246509,-54196.60531998,0.0002,2]
[357563881,1744162246518,-706.92122751,0.0002,2]
[357563883,1744162246528,-1972.10072497,0.0002,2]
[357563885,1744162246537,-1478.40852142,0.0002,2]
[357563887,1744162246547,-4290.68075877,0.0002,2]
[357563888,1744162246557,-32089.43880395,0.0002,2]
[357563889,1744162246566,-139.1098305,0.0002,7]
[357563890,1744162246576,-2807.6911929,0.0002,7]
[357563891,1744162246585,-506.48739617,0.0002,7]
[357563892,1744162246594,-803.9559661,0.0002,7]
[357563893,1744162246604,-185.25158923,0.0002,2]
[357563894,1744162246613,-144213.90542292,0.0002,2]
[357563895,1744162246625,-1501.86,0.0002,2]
[357563896,1744162246636,-1222.24521552,0.0002,2]
[357563897,1744162246647,-330.98147728,0.0002,2]
[357563898,1744162246799,-371.76386356,0.0002,2]
[357563899,1744162246813,-5553.0,0.0002,2]
[357563900,1744162246832,-750.0,0.0002,2]
[357563901,1744162246908,-9992.64325714,0.0002,2]
[357563902,1744162246921,-444.06250063,0.0002,2]
[357563903,1744162246933,-836.42,0.0002,2]
[357563904,1744162246944,-885.22186203,0.0002,2]
[357563905,1744162246961,-149549.67599999,0.0002,2]
[357563906,1744162246973,-7496.61806873,0.0002,2]
[357563934,1744162288899,260.0,0.00015,2]
[357563935,1744162304356,314.775619,0.00043505,30]
[357563936,1744162321620,400.0,0.00015,2]
[357563937,1744162382120,202.0,0.00043498,120]
[357563938,1744162388378,955.496544,7.945e-05,2]
[357563939,1744162443299,176.17945622,0.00043498,60]
[357563940,1744162467818,150.0,0.00032,120]
[357563941,1744162546156,-3668.4424,0.00019651,2]
[357563942,1744162546182,-2869.61673695,0.0001975,2]
[357563943,1744162546214,-250.0,0.0001985,2]
[357563944,1744162546240,-1777.94086305,0.000199,2]
[357563945,1744162550078,151.0,0.00043498,120]
[357563946,1744162555752,-290.19784273,0.000199,2]
[357563947,1744162555780,-164.15243552,0.000199,2]
[357563948,1744162555806,-600.05653929,0.000199,2]
[357563949,1744162555833,-5734.23871572,0.000199,2]
[357563950,1744162567086,-163.53118442,0.000199,2]
[357563951,1744162567121,-250.0,0.00019934,2]
[357563952,1744162567153,-500.0,0.00019973,2]
[357563953,1744162567184,-300.0,0.00019985,2]
[357563954,1744162567216,-1711.10244698,0.00019986,2]
[357563955,1744162580047,786523.6899736,0.00043498,30]
[357563956,1744162588551,-1213.53118442,0.00019986,2]
[357563957,1744162596652,151.0,0.00043498,120]
[357563958,1744162604173,113688.11639302,0.00043498,30]
[357563959,1744162622806,150.0,0.00032,120]
[357563960,1744162639841,1800.0,0.00019986,2]
[357563961,1744162639868,1786.46881558,0.00019986,2]
[357563962,1744163233120,-167.34244391,0.00018507,2]
[357563963,1744163367093,-431.91755609,0.00018507,2]
[357563970,1744163431596,-238.09,0.00019282,2]
[357563971,1744163431605,-300.0,0.00019309,2]
[357563972,1744163431615,-24727.01,0.0001931,2]
[357563973,1744163431623,-2000.0,0.00019331,2]
[357563974,1744163431633,-888.79,0.00019427,2]
[357563975,1744163431642,-246.03,0.00019477,2]
[357563976,1744163431651,-594.99,0.00019563,2]
[357563977,1744163431660,-500.0,0.000197,7]
[357563978,1744163431669,-250.0,0.00019701,2]
[357563979,1744163431680,-1100.0,0.000198,7]
[357563980,1744163431690,-693.69912553,0.00019899,2]
[357563981,1744163431699,-1244.33180469,0.00019899,2]
[357563982,1744163431709,-850.0,0.00019899,2]
[357563983,1744163431718,-8192.8529,0.000199,2]
[357563984,1744163431727,-162.05333236,0.000199,2]
[357563985,1744163431736,-3108.18755172,0.000199,2]
[357563986,1744163431748,-2052.6272925,0.000199,2]
[357563987,1744163431757,-191.11193003,0.000199,3]
[357563988,1744163431766,-2165.54,0.000199,2]
[357563989,1744163431776,-7773.78,0.000199,2]
[357563990,1744163431785,-2048.17,0.000199,2]
[357563991,1744163431795,-1700.0,0.000199,7]
[357563992,1744163431804,-4560.0954192,0.000199,2]
[357563993,1744163431814,-500.0,0.00019973,2]
[357563994,1744163431823,-506.29271327,0.00019973,2]
[357563995,1744163431833,-500.0,0.00019973,2]
[357563996,1744163431842,-6246.55177072,0.00019976,2]
[357563997,1744163431851,-4747.9680636,0.00019986,2]
[357563998,1744163431860,-12240.08225108,0.00019986,2]
[357563999,1744163431879,-38377.42715855,0.00019986,2]
[357564000,1744163431889,-173.73017281,0.0001999,2]
[357564002,1744163431898,-152.02216171,0.00019999,2]
[357564004,1744163431907,-1101.00730012,0.00019999,5]
[357564006,1744163431917,-2667.0,0.0002,2]
[357564008,1744163431926,-151400.63480681,0.0002,2]
[357564012,1744163431955,-22797.52868412,0.0002,2]
[357564027,1744163437631,-480.02925301,0.0002,2]
[357564028,1744163437643,-568.73347939,0.0002,2]
[357564029,1744163437655,-263.87137854,0.0002,2]
[357564030,1744163437667,-475.35351245,0.0002,2]
[357564031,1744163437678,-344.45019857,0.0002,2]
[357564032,1744163437692,-3272.795,0.0002,2]
[357564033,1744163437708,-876.49937008,0.0002,2]
[357564034,1744163437719,-86763.14040603,0.0002,2]
[357564035,1744163437731,-152046.66073035,0.0002,2]
[357564036,1744163437751,-369.50775994,0.0002,2]
[357564037,1744163437762,-304.26106665,0.0002,2]
[357564038,1744163437778,-2072.95149155,0.0002,2]
[357564039,1744163437789,-1237.30876027,0.0002,2]
[357564040,1744163437851,-39689.81595249,0.0002,2]
[357564041,1744163437863,-1103.565853,0.0002,2]
[357564042,1744163437874,-398.7122786,0.0002,2]
[357564043,1744163437889,-37093.51873346,0.0002,2]
[357564047,1744163438040,-915371.52556019,0.0002,2]
[357564057,1744163439764,-151367.04316975,0.0002,2]
[357564058,1744163439776,-1090.63872078,0.0002,2]
[357564059,1744163439787,-3005.63441551,0.0002,2]
[357564060,1744163439798,-11642.34725264,0.0002,2]
[357564061,1744163439809,-32820.16397684,0.0002,2]
[357564062,1744163439820,-13712.42692854,0.0002,2]
[357564063,1744163439851,-607.36,0.0002,2]
[357564064,1744163439862,-394.23937241,0.0002,2]
[357564065,1744163439874,-820.16756879,0.0002,2]
[357564066,1744163439896,-1949.67210021,0.0002,2]
[357564067,1744163439974,-1068.85270676,0.0002,2]
[357564105,1744163442593,-800.97413474,0.0002,2]
[357564110,1744163442616,-5961.36530736,0.0002,2]
[357564114,1744163442630,-3840.45983549,0.0002,2]
[357564116,1744163442644,-549.05,0.0002,2]
[357564118,1744163442714,-1692.70351041,0.0002,2]
[357564134,1744163443511,-3.88209462,0.0002,2]
[357564135,1744163443529,-1423.499993,0.0002,2]
[357564136,1744163443540,-658.37860201,0.0002,2]
[357564137,1744163445594,-54946.01701955,0.0002,2]
[357564138,1744163445609,-36758.14617224,0.0002,2]
[357564139,1744163445621,-554.94,0.0002,2]
[357564140,1744163445632,-151.78,0.0002,2]
[357564141,1744163445645,-151.78,0.0002,2]
[357564142,1744163445656,-151.78,0.0002,2]
[357564143,1744163445668,-151.78,0.0002,2]
[357564144,1744163445680,-151.78,0.0002,2]
[357564145,1744163445694,-563.08999325,0.0002,2]
[357564146,1744163445706,-1675.54218425,0.0002001,2]
[357564147,1744163445718,-163.43,0.00020199,2]
[357564148,1744163445728,-250.0,0.00020358,2]
[357564149,1744163445740,-250.0,0.00020358,2]
[357564150,1744163445752,-696.24,0.0002052,2]
[357564151,1744163445763,-423.72,0.00020548,2]
[357564152,1744163445778,-1000.0,0.00020652,2]
[357564153,1744163445789,-151.49,0.00020732,2]
[357564154,1744163445801,-500.0,0.0002074,2]
[357564155,1744163445812,-1852.42,0.00020766,2]
[357564156,1744163445824,-599.26,0.00020771,2]
[357564157,1744163445835,-200.0,0.00020795,2]
[357564158,1744163445845,-295.0,0.00020914,2]
[357564159,1744163445855,-500.0,0.00020973,2]
[357564160,1744163445866,-505.38926687,0.00020973,2]
[357564161,1744163445877,-151.78,0.0002099,2]
[357564162,1744163445889,-192.28,0.00020992,2]
[357564163,1744163445902,-10772.35536484,0.00021,2]
[357564164,1744163445928,-36820.22289946,0.00021,2]
[357564167,1744163445968,-18.59360478,0.00021,2]
[357564168,1744163445991,-1201.73696629,0.00021,2]
[357564169,1744163446018,-50032.50597395,0.00021,2]
[357564170,1744163446028,-300.0,0.00021,2]
[357564171,1744163446039,-20000.0,0.00021,2]
[357564172,1744163446049,-420.0,0.0002104,2]
[357564173,1744163446062,-3647.62184658,0.00021044,2]
[357564174,1744163446081,-192.28,0.00021097,2]
[357564175,1744163446096,-3952.41,0.00021145,2]
[357564176,1744163446111,-166.67,0.00021267,2]
[357564177,1744163446122,-191.92,0.00021511,2]
[357564178,1744163446133,-200.0,0.00021511,7]
[357564179,1744163446144,-255.0,0.00021562,2]
[357564180,1744163446155,-7031.67595568,0.000217,2]
[357564181,1744163446166,-5434.0,0.000218,2]
[357564182,1744163446177,-150.0,0.00021917,2]
[357564183,1744163446187,-150.0,0.00021924,2]
[357564184,1744163446201,-761.98555466,0.00022,7]
[357564185,1744163446212,-23900.0,0.00022224,2]
[357564186,1744163446223,-166.67,0.00022437,2]
[357564187,1744163446234,-33018.12504971,0.000225,2]
[357564188,1744163446245,-172.0,0.00022926,2]
[357564189,1744163446256,-350.0,0.00023,2]
[357564190,1744163446267,-599.26,0.00023035,2]
[357564191,1744163446277,-166.66,0.0002307,2]
[357564192,1744163446288,-4560.09541911,0.00023157,2]
[357564193,1744163446299,-14452.24096191,0.000232,2]
[357564194,1744163446314,-1000.0,0.00023234,2]
[357564195,1744163446325,-150.0,0.00023287,2]
[357564196,1744163446336,-166.67,0.00023607,2]
[357564197,1744163446348,-151.43,0.00023836,2]
[357564198,1744163446359,-393.0,0.00023973,2]
[357564199,1744163446370,-30289.33953067,0.00024,2]
[357564200,1744163446381,-411.01646335,0.00024454,2]
[357564201,1744163446392,-150.0,0.00024657,2]
[357564202,1744163446404,-166.67,0.00024778,2]
[357564203,1744163446415,-20947.4485916,0.000248,2]
[357564204,1744163446426,-152.366275,0.000249,7]
[357564205,1744163446437,-151.0,0.000249,7]
[357564206,1744163446452,-153.751322,0.000249,7]
[357564207,1744163446463,-160.340899,0.000249,7]
[357564208,1744163446474,-151.0,0.000249,7]
[357564209,1744163446484,-155.642591,0.000249,7]
[357564210,1744163446496,-159.311276,0.000249,7]
[357564211,1744163446507,-152.446118,0.000249,7]
[357564212,1744163446519,-151.0,0.000249,7]
[357564213,1744163446529,-153.059952,0.000249,7]
[357564214,1744163446540,-153.730586,0.000249,7]
[357564215,1744163446550,-154.245728,0.000249,7]
[357564216,1744163446562,-152.066594,0.000249,7]
[357564217,1744163446572,-157.754934,0.000249,7]
[357564218,1744163446582,-215.807431,0.000249,7]
[357564219,1744163446593,-151.0,0.000249,7]
[357564220,1744163446603,-153.634804,0.000249,7]
[357564221,1744163446613,-154.436567,0.000249,7]
[357564222,1744163446624,-153.00545,0.000249,7]
[357564223,1744163446634,-151.0,0.000249,7]
[357564224,1744163446644,-163.520382,0.000249,7]
[357564225,1744163446654,-2300.0,0.000249,9]
[357564226,1744163446666,-154.913324,0.000249,7]
[357564227,1744163446676,-5784.257532,0.000249,2]
[357564228,1744163446686,-152.436731,0.000249,7]
[357564229,1744163446701,-151.0,0.000249,7]
[357564230,1744163446711,-151.0,0.000249,7]
[357564231,1744163446723,-152.144748,0.000249,7]
[357564232,1744163446734,-156.573961,0.000249,7]
[357564233,1744163446745,-151.0,0.000249,7]
[357564234,1744163446756,-156.758865,0.000249,7]
[357564235,1744163446766,-151.0,0.000249,7]
[357564236,1744163446777,-151.0,0.000249,7]
[357564237,1744163446788,-151.0,0.000249,7]
[357564238,1744163446798,-400.0,0.00025,2]
[357564239,1744163446809,-599.26,0.00025299,2]
[357564240,1744163446820,-501.22866722,0.00025443,2]
[357564241,1744163446830,-515.21710398,0.00025452,2]
[357564242,1744163446841,-501.32948064,0.00025498,2]
[357564243,1744163446852,-500.0,0.00025667,2]
[357564244,1744163446863,-381.85506747,0.00025667,2]
[357564245,1744163446874,-500.0,0.00025667,2]
[357564246,1744163446885,-508.14606924,0.00025667,2]
[357564247,1744163446896,-318.46559789,0.00025683,2]
[357564248,1744163446907,-1000.0,0.00025815,2]
[357564249,1744163446918,-150.0,0.00026027,2]
[357564250,1744163446929,-162.05333233,0.00026156,2]
[357564251,1744163446940,-4560.09541911,0.00026414,2]
[357564252,1744163446956,-512.77902551,0.00026452,2]
[357564253,1744163446968,-152.58,0.00026849,2]
[357564254,1744163446979,-190.89,0.00026849,2]
[357564255,1744163446990,-165.33,0.00026849,2]
[357564256,1744163447000,-166.66,0.00026878,2]
[357564257,1744163447012,-450.0,0.00027,2]
[357564258,1744163447023,-594.99,0.00027388,2]
[357564259,1744163447034,-150.0,0.00027397,2]
[357564260,1744163447045,-957.4,0.00027397,2]
[357564261,1744163447056,-599.26,0.00027563,2]
[357564262,1744163447068,-161.67,0.00027704,2]
[357564263,1744163447079,-1000.0,0.00028397,2]
[357564264,1744163447089,-150.0,0.00028767,2]
[357564265,1744163447099,-957.4,0.00028767,2]
[357564266,1744163447110,-161.67,0.00029243,2]
[357564267,1744163447122,-5160.81484414,0.00029671,2]
[357564268,1744163447133,-4560.09541911,0.00029672,2]
[357564269,1744163447145,-599.26,0.00029827,2]
[357564270,1744163447156,-151.78,0.0002999,2]
[357564271,1744163447167,-50945.18193673,0.0003,2]
[357564272,1744163447187,-527.65686525,0.0003,2]
[357564273,1744163447563,-1969.18899275,0.0003,2]
[357564274,1744163447574,-150.0,0.00030136,2]
[357564275,1744163447585,-957.4,0.00030137,2]
[357564276,1744163447596,-163.43,0.00030299,2]
[357564277,1744163447607,-161.67,0.00030782,2]
[357564278,1744163447630,-1000.0,0.00030978,2]
[357564279,1744163447652,-1000.0,0.00031146,5]
[357564280,1744163447668,-503.74274478,0.00031146,5]
[357564281,1744163447681,-150.0,0.00031506,2]
[357564282,1744163447695,-957.4,0.00031507,2]
[357564283,1744163447709,-333.92111878,0.00032091,2]
[357564284,1744163447723,-265.33888122,0.00032091,2]
[357564285,1744163447734,-191.92,0.00032267,120]
[357564286,1744163447745,-161.67,0.00032321,2]
[357564287,1744163447755,-162.05333233,0.00032411,2]
[357564288,1744163447767,-190.89,0.00032646,2]
[357564289,1744163447777,-159.03110076,0.00032876,2]
[357564290,1744163447789,-957.4,0.00032877,2]
[357564291,1744163447800,-2766.80359822,0.000329,30]
[357564292,1744163447811,-523.90788647,0.00032928,2]
[357564293,1744163447829,-4444.24996176,0.00032928,2]
[357564294,1744163492738,379.98,0.00015,2]
[357564295,1744163528003,625.288746,7.945e-05,2]
[357564351,1744164190637,-250.0,0.00019,2]
[357564352,1744164190659,-535.618,0.00019502,2]
[357564353,1744164190680,-2215.0882,0.000198,2]
[357564354,1744164190703,-3631.83609057,0.000198,2]
[357564355,1744164190724,-1153.56599392,0.00019899,5]
[357564356,1744164190745,-1153.56599392,0.00019899,5]
[357564357,1744164190768,-1020.01294584,0.00019899,5]
[357564358,1744164190790,-300040.31277575,0.000199,2]
[357564359,1744164272841,40000.0,0.00043507,30]
[357564360,1744164340099,-386.36785023,0.00018905,2]
[357564361,1744164441091,-1032.612621,0.00019674,2]
[357564362,1744164441113,-285.58698539,0.000197,2]
[357564363,1744164441134,-281.4714692,0.000197,2]
[357564364,1744164441155,-1332.56186555,0.000198,2]
[357564365,1744164631929,-300.5167803,0.000198,2]
[357564366,1744164632023,-1065.23834004,0.000198,2]
[357564367,1744164632036,-59431.41441411,0.000198,2]
[357564369,1744164632046,-4950.32617323,0.000198,2]
[357564372,1744164632060,-1610.63572677,0.000198,2]
[357564374,1744164632071,-300.0,0.00021,2]
[357564376,1744164632086,-250.0,0.0002189,2]
[357564378,1744164632097,-350.0,0.00023,2]
[357564380,1744164632108,-1893.34417015,0.00023192,2]
[357564383,1744164632119,-250.0,0.0002365,2]
[357564385,1744164632130,-400.0,0.00025,2]
[357564387,1744164632140,-152.58,0.00026849,2]
[357564389,1744164632151,-450.0,0.00027,2]
[357564391,1744164632162,-420.78403348,0.000274,2]
[357564393,1744164632173,-558.4843345,0.00028999,2]
[357564395,1744164632184,-500.0,0.00029,2]
[357564397,1744164632194,-447.09,0.00029079,2]
[357564400,1744164632210,-162.84,0.00030668,2]
[357564401,1744164632226,-200.0,0.0003069,2]
[357564403,1744164632237,-550.0,0.00031,2]
[357564405,1744164632248,-447.09,0.00031343,2]
[357564407,1744164632259,-2980.92025611,0.00031543,2]
[357564409,1744164632270,-4363.93228794,0.00031625,2]
[357564481,1744164640181,-594.96847343,0.00031625,2]
[357564483,1744164640195,-13814.60399925,0.00031625,2]
[357564572,1744164642924,-6500.0,0.00031625,2]
[357564842,1744164645823,-398.96160202,0.00031625,2]
[357564870,1744164646109,-302.33896605,0.00031625,2]
[357564908,1744165346292,676.0,0.00032,120]
[357564909,1744165522043,557.32480695,0.00043662,120]
[357564910,1744165541096,-250.0,0.00019,2]
[357564911,1744165541126,-3188.377383,0.0002,2]
[357564912,1744165543094,13212.8033808,0.00043662,120]
[357564913,1744165556974,1355.3909485,0.00043662,30]
[357564915,1744165607653,188.78427397,0.0002,30]
[357564916,1744165629098,-801.9408795,0.0001999,2]
[357564917,1744165629120,-511.4,0.00019999,2]
[357564918,1744165629145,-2482.22008633,0.0002,2]
[357564920,1744165681812,7500.0,0.00015,2]
[357564921,1744165681838,9384.503456,0.00015,2]
[357564922,1744165682653,-2725.71986506,0.00015,2]
[357564925,1744165701947,-9475.09975972,0.00015,2]
[357564927,1744165701990,-9475.09975972,0.00015,2]
[357564928,1744165702025,-4811.77762591,0.00015,2]
[357564929,1744165702808,-150.98148899,0.00015,2]
[357564930,1744165714797,1187.50903167,0.00043662,120]
[357564931,1744165719698,-300.0,0.000149,2]
[357564932,1744165726766,-2938.84899507,0.000149,2]
[357564933,1744165726796,-150.981489,0.00014925,2]
[357564934,1744165726826,-6860.50881856,0.00015,2]
[357564936,1744165726869,-8489.34109837,0.00015,2]
[357564938,1744165735331,-1182.4705,0.00015,2]
[357564939,1744165745102,-4440.960258,0.00015,2]
[357564940,1744165748103,-45027.72271521,0.00015,2]
[357564941,1744165749125,-8122.680314,0.00015,2]
[357564942,1744165751104,-95893.73892,0.00015,2]
[357564943,1744165751671,-10319.13291065,0.00015,2]
[357564944,1744165751741,-7361.39196336,0.00015,2]
[357564945,1744165759098,-54355.11984,0.00015,2]
[357564946,1744165766103,-104819.11815266,0.00015,2]
[357564947,1744165776789,-8446.83903529,0.00015,2]
[357564948,1744165776862,-10672.74340813,0.00015,2]
[357564949,1744165801756,-164.16733,0.00014925,2]
[357564950,1744165801786,-300.0,0.00014999,2]
[357564951,1744165801818,-10590.967727,0.00015,2]
[357564952,1744165802163,-6562.04137936,0.00015,2]
[357564968,1744165832045,-843.67775087,0.00015,2]
[357564969,1744165832116,-904.30910787,0.00015,2]
[357564970,1744165832228,-7238.13128174,0.00015,2]
[357564978,1744165837904,-1409.9472014,0.00015,2]
[357564979,1744165838019,-958.776191,0.00015,2]
[357564980,1744165838032,-3453.598199,0.00015,2]
[357564981,1744165838043,-2920.0991605,0.00015,2]
[357564982,1744165838077,-2890.19999997,0.00015,2]
[357564983,1744165838131,-692.74999987,0.00015,2]
[357564992,1744165838720,5126.0,0.00043662,30]
[357564996,1744165840203,-383402.77119617,0.00015,2]
[357564997,1744165840213,-183.32030528,0.000176,2]
[357564998,1744165840223,-2682.82823049,0.000177,2]
[357564999,1744165840233,-3370.58708375,0.000178,2]
[357565000,1744165840243,-692.42822687,0.00018,2]
[357565001,1744165840253,-213.26383797,0.000181,2]
[357565002,1744165840262,-40495.01987789,0.00019,2]
[357565003,1744165840272,-300.0,0.000196,7]
[357565004,1744165840283,-600.0,0.000197,7]
[357565005,1744165840293,-1000.0,0.000198,7]
[357565006,1744165840303,-3370.58708372,0.00019803,2]
[357565007,1744165840313,-1300.0,0.000199,7]
[357565008,1744165840323,-194.68596916,0.000199,2]
[357565009,1744165840333,-1252.37655912,0.000199,2]
[357565010,1744165840342,-160.81830628,0.000199,2]
[357565011,1744165840352,-8853.48225762,0.000199,2]
[357565012,1744165840362,-500.98982406,0.00019973,2]
[357565013,1744165840372,-611.02205375,0.00019973,2]
[357565014,1744165840382,-500.0,0.00019973,2]
[357565015,1744165840392,-200.74071273,0.00019973,2]
[357565016,1744165840402,-284.09994733,0.00019973,2]
[357565017,1744165840413,-173.73017282,0.0001999,2]
[357565018,1744165840423,-321.38079243,0.00019999,2]
[357565019,1744165840432,-15554.0637473,0.00019999,2]
[357565020,1744165840441,-783042.99070582,0.0002,2]
[357565040,1744165840733,-832.52730892,0.0002,2]
[357565065,1744165843028,-814.98980894,0.0002,2]
[357565077,1744165843764,-263481.71104956,0.0002,2]
[357565078,1744165846122,-1875.13997591,0.0001999,2]
[357565079,1744165846135,-1086.1368,0.0001999,2]
[357565080,1744165846146,-594.47942574,0.0001999,2]
[357565081,1744165846158,-776.42985123,0.0001999,2]
[357565082,1744165846170,-436.2434021,0.0001999,2]
[357565083,1744165846179,-4142.48490661,0.0002,2]
[357565084,1744165846191,-2651.33018751,0.0002,2]